Cogmind - Beta 15 @@@ ROGUE MODE // 2025.05.26 @ 03:35:44 Player: puppuppit Result: Destroyed by S-27 Virus with Autogun Performance ------------- Evolutions (4) 2000 Regions Visited (7) 1400 Robots Destroyed (131) 655 Value Destroyed (3171) 3171 Prototype IDs (23) 460 Alien Tech Used (0) 0 Bonus (1241) 1241 TOTAL SCORE: 8927 Bonus ------- High Alert Combat Kills 159 Follower Combat Kills 282 Registered with UFD 300 Met Optimus in HQ 500 Cogmind --------- Core Integrity 0/850 Matter 226/300 Energy 159/160 System Corruption 14% Temperature Cool (0) Movement Hovering (105) Ox1 Location -6/Factory Parts ------- > --- POWER (1) -------- Light Nuclear Core > --- PROPULSION (5) --- Gravmag System Improved Gravmag System Gravmag Array Improved Cesium-ion Thruster > --- UTILITY (6) ------ Scrap Suit Large Storage Unit Targeting Computer Advanced Hacking Suite > --- WEAPON (3) ------- Magnetic Acceleration Cannon Precision Rocket Launcher > --- INVENTORY (15) --- Light Nuclear Core Cooled VTOL Module Gun Armor Autogun Magnetic Acceleration Cannon Heavy Flak Cannon Rocket Launcher Long-range Missile Launcher DRS Beacon (Ready) Peak State ------------ > --- POWER ------------ Light Nuclear Core > --- PROPULSION ------- Gravmag System Improved Gravmag System Gravmag Array Improved Cesium-ion Thruster > --- UTILITY ---------- Scrap Suit Large Storage Unit Targeting Computer Advanced Hacking Suite > --- WEAPON ----------- Magnetic Acceleration Cannon Precision Rocket Launcher > --- INVENTORY -------- Light Nuclear Core Cooled VTOL Module Gun Armor Autogun Magnetic Acceleration Cannon Heavy Flak Cannon Rocket Launcher Long-range Missile Launcher DRS Beacon [Rating: 58] Favorites ----------- Power Subdweller Power Source Engine Subdweller Power Source Power Core Light Nuclear Core Propulsion Compact Wheel Treads Light Treads Leg Carbon-fiber Leg Wheel Compact Wheel Hover Unit Gravmag Array Flight Unit Cooled Cesium-ion Thruster Utility Large Storage Unit Device Structural Scanner Storage Large Storage Unit Processor Machine Analyzer Hackware System Shield Protection Makeshift Light Armor Plating Weapon Light Cannon Ballistic Gun Light Assault Rifle Ballistic Cannon Light Cannon Launcher Grenade Launcher Impact Weapon Hammer Build | -11 -10 -10 -8 -8 -6 -6 -6 ------- Run | Yrd Mat Sub Rec Scr Fac Was Fac Slots Evolved 8 | . . . . . 8 . . Power . | . . . . . . . . Propulsion 3 | . . . . . 3 . . Utility 4 | . . . . . 4 . . Weapon 1 | . . . . . 1 . . Parts Attached 85 | 9 8 11 6 7 32 . 12 Power 13 | 1 1 3 . 2 2 . 4 Engine 10 | 1 1 3 . 2 1 . 2 Core 3 | . . . . . 1 . 2 Reactor . | . . . . . . . . Propulsion 30 | 4 2 3 2 2 13 . 4 Treads 2 | . 2 . . . . . . Leg 4 | . . . . . 4 . . Wheel 15 | 4 . 3 2 . 5 . 1 Hover 7 | . . . . 2 3 . 2 Flight 2 | . . . . . 1 . 1 Utility 21 | 2 4 2 2 2 6 . 3 Device 5 | 1 1 . 1 . 1 . 1 Storage 5 | 1 2 1 . 1 . . . Processor 2 | . . . . 1 . . 1 Hackware 4 | . . . . . 3 . 1 Protection 5 | . 1 1 1 . 2 . . Artifact . | . . . . . . . . Weapon 21 | 2 1 3 2 1 11 . 1 Energy Gun . | . . . . . . . . Energy Cannon . | . . . . . . . . Ballistic Gun 6 | 2 . . 2 . 2 . . Ballistic Cannon 8 | . . 2 . 1 5 . . Launcher 6 | . 1 . . . 4 . 1 Special Weapon . | . . . . . . . . Impact Weapon 1 | . . 1 . . . . . Slashing Weapon . | . . . . . . . . Piercing Weapon . | . . . . . . . . Special Melee Weapon . | . . . . . . . . Unidentified Prototypes 3 | . . . . . 2 . 1 Parts Lost 36 | . . 5 2 . 29 . . Power 4 | . . 1 . . 3 . . Propulsion 17 | . . 3 . . 14 . . Utility 7 | . . 1 1 . 5 . . Weapon 8 | . . . 1 . 7 . . Highest Loss Streak 7 | . . 2 1 . 7 . . To Critical Strikes . | . . . . . . . . Average Backups 11 | 1 9 14 13 11 9 13 9 Power . | . . 1 2 . . . . Propulsion 2 | 1 2 1 3 2 . 1 1 Utility 3 | . 3 3 3 4 3 3 2 Weapon 5 | . 3 6 4 3 6 8 6 Tool/Special . | . . . . . . . . Unused Backups 21 | . . 5 . 7 1 1 7 Power 1 | . . 1 . . . . . Propulsion 4 | . . . . 3 . . 1 Utility 7 | . . 1 . 3 1 . 2 Weapon 9 | . . 3 . 1 . 1 4 Tool/Special . | . . . . . . . . Average Slot Usage (%) 87 | . 100 99 100 100 55 13 37 Engine 10 | . 14 13 14 14 1 . 1 Treads 6 | . 23 9 . . . . . Leg 1 | . . . . . 5 . . Wheel 15 | . 4 18 28 27 6 . . Hover 1 | . . . . . 5 6 12 Device 5 | . 4 10 10 . 1 . 2 Storage 12 | . 14 14 14 14 6 6 6 Processor 1 | . . . . 2 3 . 1 Hackware 1 | . . . . . 8 . 2 Protection 5 | . 9 3 3 11 1 . . Ballistic Gun 8 | . 27 1 13 8 1 . . Ballistic Cannon 12 | . . 20 14 19 6 . 3 Impact Weapon 1 | . . 4 . . . . . Peak Build Rating 58 | 7 10 12 16 22 48 18 58 Average Rating 16 | 5 9 10 13 15 28 18 32 On Entrance 11 | . 7 9 12 15 16 18 18 Naked Turns . | . . . . . . . . Heaviest Build 50 | 11 34 38 36 36 50 20 47 Greatest Support 50 | 26 40 40 32 32 50 20 39 Greatest Overweight (x) 6 | . . 3 1 1 3 . 6 Average Overweight (x) . | . . 1 . . . . . Largest Inventory Capacity 15 | 8 15 15 15 15 15 15 15 Average Capacity 14 | 7 12 15 15 15 15 15 15 Most Carried 15 | 4 14 15 15 15 15 15 15 Average Carried 12 | 1 10 14 14 12 12 15 11 Final Capacity 15 | 8 15 15 15 15 15 15 15 Final Carried 15 | 4 14 15 15 15 15 15 9 Class Distribution -------------------- 56% | Mutant 32% | Commander-Mutant 3% | Hacker-Tank 3% | Hacker-Mutant 3% | Scavenger-Mutant Dominant Class ---------------- Mutant | -10/Materials Mutant | -10/Subcaves Commander-Mutant | -8/Recycling Commander-Mutant | -8/Scraptown Mutant | -6/Factory Mutant | -6/Waste Mutant | -6/Factory Resources | -11 -10 -10 -8 -8 -6 -6 -6 ----------- Run | Yrd Mat Sub Rec Scr Fac Was Fac Matter Collected 3907 | 340 346 604 429 270 1239 . 679 Remotely . | . . . . . . . . Salvage Created 3153 | 174 459 415 425 . 1166 . 514 Parts 231 | 10 40 44 21 . 76 . 40 Haulers Intercepted 3 | . 2 . . . 1 . . Recyclers Shooed 5 | . . . 2 . 1 . 2 Parts Field Recycled . | . . . . . . . . Retrieved Matter . | . . . . . . . . Parts Self-Destructed 16 | . . 16 . . . . . Prevented . | . . . . . . . . Kills | -11 -10 -10 -8 -8 -6 -6 -6 ------- Run | Yrd Mat Sub Rec Scr Fac Was Fac Combat Hostiles Destroyed 85 | . 14 19 3 . 34 . 15 Guns 15 | . 12 . 2 . 1 . . Cannons 17 | . . 6 1 . 9 . 1 AOE 53 | . 2 13 . . 24 . 14 Classes Destroyed 15 | 3 5 2 1 . 4 . . Worker 13 | 1 1 . . . 6 . 5 Builder 12 | . 1 . . . 7 . 4 Tunneler 7 | 5 1 . . . . . 1 Hauler 3 | . 2 . . . 1 . . Recycler 9 | 1 . . 5 . 2 . 1 Watcher 1 | . 1 . . . . . . Swarmer 41 | . 11 5 . . 13 . 12 Cutter 2 | . . . . . 2 . . Grunt 16 | . 3 . . . 10 . 3 Brawler 1 | . . . . . 1 . . Protector 1 | . . . 1 . . . . Sentry 6 | . . 1 2 . 3 . . Hunter 4 | . . . . . 4 . . Programmer 2 | . . . . . 2 . . Subdweller 13 | . . 13 . . . . . Best Kill Streak 13 | 4 5 6 4 . 13 . 11 Combat Bots Only 7 | . 4 6 1 . 6 . 7 Max Kills in Single Turn 5 | 1 1 3 1 . 3 . 5 Gunslinging . | . . . . . . . . Exploded 4 | . 1 3 . . 2 . 4 Melee . | . . . . . . . . Uniques/NPCs Destroyed . | . . . . . . . . Combat | -11 -10 -10 -8 -8 -6 -6 -6 -------- Run | Yrd Mat Sub Rec Scr Fac Was Fac Hostile Shots Fired 501 | . 65 55 14 . 335 . 32 Missed 182 | . 23 17 5 . 129 . 8 Hits 319 | . 42 38 9 . 206 . 24 Projectile 319 | . 42 38 9 . 206 . 24 AOE 3 | . . 1 . . 2 . . Critical Strikes 8 | . . . . . 7 . 1 Damage Taken 4788 | . 378 788 136 . 3153 . 333 Core 1036 | . 68 100 14 . 780 . 74 Absorbed by Shields . | . . . . . . . . Core Remaining (%) 63 | 100 . . . 27 . . . Volleys Fired 259 | 25 69 39 19 . 84 . 23 Largest 3 | 2 2 2 2 . 3 . 2 Hottest 132 | 40 50 60 60 . 132 . 87 Shots Fired 476 | 50 138 67 36 . 161 . 24 Gun 225 | 50 136 . 15 . 24 . . Cannon 181 | . . 41 21 . 106 . 13 Launcher 70 | . 2 26 . . 31 . 11 Special . | . . . . . . . . Kinetic 406 | 50 136 41 36 . 130 . 13 Thermal . | . . . . . . . . Explosive 70 | . 2 26 . . 31 . 11 Electromagnetic . | . . . . . . . . Robot Hit Streak 20 | 20 8 15 10 . 12 . 5 Robot Miss Streak 6 | 5 6 1 2 . 6 . 1 Penetration Max . | . . . . . . . . Secondary Targets 1 | . 1 . . . . . . Max Gunslinging Chain 1 | . 1 . . . . . . Shots Hit Robots 297 | 31 83 50 25 . 97 . 11 Core Hits 239 | 12 38 39 10 . 109 . 31 Critical Kills 1 | . 1 . . . . . . Critical Parts Destroyed 2 | . . . 1 . 1 . . Critical Strikes 14 | . 1 1 2 . 8 . 2 Destroy 3 | . 1 . 1 . 1 . . Blast 11 | . . 1 1 . 7 . 2 Melee Attacks 21 | . . 21 . . . . . Impact 21 | . . 21 . . . . . Slashing . | . . . . . . . . Piercing . | . . . . . . . . Sneak Attacks 1 | . . 1 . . . . . Combat Hostiles . | . . . . . . . . Follow-up Attacks . | . . . . . . . . Damage Inflicted 10719 | 242 763 1880 484 . 5216 . 2134 Guns 1366 | 242 648 . 239 . 237 . . Cannons 2942 | . . 619 245 . 1854 . 224 Explosions 6411 | . 115 1261 . . 3125 . 1910 Melee . | . . . . . . . . Ramming . | . . . . . . . . Kinetic 4308 | 242 648 619 484 . 2091 . 224 Thermal . | . . . . . . . . Explosive 6411 | . 115 1261 . . 3125 . 1910 Electromagnetic . | . . . . . . . . Impact . | . . . . . . . . Slashing . | . . . . . . . . Piercing . | . . . . . . . . Highest Corruption 14 | . . . . . 7 13 14 Average Corruption 8 | . . . . . 5 11 13 Corruption Purged . | . . . . . . . . Corruption Blocked . | . . . . . . . . Effects 48 | . . . . . 28 4 16 Message Errors 10 | . . . . . 3 3 4 Matter Fused 13 | . . . . . 11 1 1 Heat Flow Errors 8 | . . . . . 5 . 3 Parts Rejected 3 | . . . . . 1 . 2 Data Loss (minor) 3 | . . . . . 1 . 2 Misfires 2 | . . . . . 1 . 1 Alerts 3 | . . . . . 3 . . Misdirections 2 | . . . . . . . 2 Weapon Failures 4 | . . . . . 3 . 1 Overload Shots . | . . . . . . . . Overflow Damage 175 | . 7 12 11 . 81 . 64 Projectiles 13 | . . . 11 . 2 . . Explosions 162 | . 7 12 . . 79 . 64 Melee . | . . . . . . . . Knockbacks 27 | . . 2 . . 23 . 2 Impact . | . . . . . . . . Kinetic 24 | . . 2 . . 20 . 2 Secondary 3 | . . . . . 3 . . Self-Inflicted Damage 178 | . . 18 . . 160 . . Shots 5 | . . 2 . . 3 . . Rammed . | . . . . . . . . Targets Rammed . | . . . . . . . . Kicked . | . . . . . . . . Crushed . | . . . . . . . . Highest Temperature 260 | . 94 . 69 . 260 . 207 Average Temperature 48 | . 22 . 29 . 76 . 81 Received Heat Transfer 1158 | . 78 81 45 . 936 . 18 Effects 1 | . . . . . . . 1 Energy Bleed 1 | . . . . . . . 1 Siege Activations . | . . . . . . . . Martial Activations . | . . . . . . . . Shielding Activations . | . . . . . . . . Robots Disrupted . | . . . . . . . . Combat Hostiles . | . . . . . . . . Robots Corrupted . | . . . . . . . . Combat Hostiles . | . . . . . . . . Parts Fried . | . . . . . . . . Impact Corruptions . | . . . . . . . . Robots Melted . | . . . . . . . . Combat Hostiles . | . . . . . . . . Parts Melted 1 | . . . . . 1 . . Heat Transferred . | . . . . . . . . Parts Sabotaged . | . . . . . . . . Parts Stolen . | . . . . . . . . Parts Stripped . | . . . . . . . . Power Chain Reactions . | . . . . . . . . Alert | -11 -10 -10 -8 -8 -6 -6 -6 ------- Run | Yrd Mat Sub Rec Scr Fac Was Fac Maximum Alert Level 2 | . 1 . . . 2 1 2 Low Security (%) 69 | 100 77 . 100 . 42 41 55 Level 1 16 | . 22 . . . 26 58 10 Level 2 13 | . . . . . 30 . 33 Level 3 . | . . . . . . . . Level 4 . | . . . . . . . . Level 5 . | . . . . . . . . High Security . | . . . . . . . . Max Security . | . . . . . . . . Peak Influence 687 | 10 229 . 67 . 614 210 687 Initial 210 | . 3 . . . . 210 126 Average 170 | 2 138 . 13 . 294 197 295 Influence Increases 3197 | 35 539 160 205 . 1391 . 867 Destroy 0b10 Robot/C 1560 | . 280 120 60 . 680 . 420 Destroy 0b10 Robot/NC 235 | 35 30 . 30 . 80 . 60 Destroy Leader 320 | . 66 10 . . 152 . 92 Allied During Kill 96 | . . . 6 . 35 . 55 Trap Triggered on 0b10 20 | . . . . . 20 . . Successful Hack 173 | . 62 . 16 . 57 . 38 Select Force Hacks 120 | . 30 . 90 . . . . Disable Machine 120 | . . . . . 60 . 60 Destroy Structure 238 | . 11 . 3 . 157 . 67 Partial Spotted 30 | . . . . . 15 . 15 Lose Combat Pursuer 285 | . 60 30 . . 135 . 60 Influence Decreases 2510 | 30 356 348 205 . 789 422 360 Entered New Map 539 | . 2 91 . . . 392 54 Time Decay 1481 | 30 354 237 195 . 429 30 206 Lost Part 320 | . . 20 10 . 290 . . Lost Ally 170 | . . . . . 70 . 100 Squads Dispatched 21 | . 2 . . . 14 . 5 Investigation 7 | . 1 . . . 4 . 2 Extermination 3 | . . . . . 3 . . Reinforcement 7 | . 1 . . . 3 . 3 Assault 1 | . . . . . 1 . . Garrison 3 | . . . . . 3 . . Intercept . | . . . . . . . . Searches Triggered . | . . . . . . . . Construction Impeded 2 | . . . . . 1 . 1 Haulers Reinforced 3 | . . . . . 1 . 2 Active Scanning Responses . | . . . . . . . . Cargo Convoy Interrupts . | . . . . . . . . Stealth | -11 -10 -10 -8 -8 -6 -6 -6 --------- Run | Yrd Mat Sub Rec Scr Fac Was Fac Distress Signals 9 | . 2 . . . 4 . 3 Communications Jammed . | . . . . . . . . Distress Signals . | . . . . . . . . Times Spotted 136 | . 31 17 3 . 53 6 26 Peak Tracking Total 9 | . 6 3 1 . 9 6 5 Tactical Retreats 12 | . 3 1 . . 6 . 2 Traps | -11 -10 -10 -8 -8 -6 -6 -6 ------- Run | Yrd Mat Sub Rec Scr Fac Was Fac Traps Triggered 5 | . . 1 . . 4 . . Indirectly . | . . . . . . . . Trap Hack Attempts . | . . . . . . . . Triggered . | . . . . . . . . Disarmed 4 | . . . . . 4 . . Reprogrammed . | . . . . . . . . Reused 2 | . . . . . 2 . . Traps Extracted . | . . . . . . . . Installed 2 | . . . . . 2 . . Triggered 2 | . . . . . 2 . . Most Traps Carried 2 | . . . . 2 2 . . Machines | -11 -10 -10 -8 -8 -6 -6 -6 ---------- Run | Yrd Mat Sub Rec Scr Fac Was Fac Machines Disabled 9 | . . 1 . . 4 . 4 Max in Single Turn 2 | . . 1 . . 1 . 2 Machines Repaired . | . . . . . . . . Machines Dismantled . | . . . . . . . . Machines Sabotaged . | . . . . . . . . Overloaded Fab Kills . | . . . . . . . . Hacking | -11 -10 -10 -8 -8 -6 -6 -6 --------- Run | Yrd Mat Sub Rec Scr Fac Was Fac Machines Accessed 38 | . 8 4 8 2 10 . 6 Terminals 20 | . 7 . 5 . 4 . 4 Fabricators . | . . . . . . . . Repair Stations 1 | . . . . . 1 . . Recycling Units 9 | . 1 . 3 . 4 . 1 Scanalyzers 1 | . . . . . 1 . . Garrison Access 1 | . . . . . . . 1 Total Hacks 106 | . 32 17 18 6 21 . 12 Successful 64 | . 18 17 9 6 10 . 4 Failed 40 | . 13 . 8 . 11 . 8 Catastrophic 3 | . . . 1 . 1 . 1 Database Lockouts 2 | . 1 . 1 . . . . Manual 60 | . 22 . 16 . 15 . 7 Terminals 67 | . 31 . 15 . 11 . 10 Fabricators . | . . . . . . . . Repair Stations 1 | . . . . . 1 . . Recycling Units 13 | . 1 . 3 . 8 . 1 Scanalyzers 1 | . . . . . 1 . . Garrison Access 1 | . . . . . . . 1 Terminal Hacks 40 | . 11 17 3 6 2 . 1 Record 19 | . . 14 . 5 . . . Part Schematic 1 | . . . 1 . . . . Robot Analysis 9 | . 7 . 1 . 1 . . Prototype ID Bank 2 | . 2 . . . . . . Open Door 1 | . . 1 . . . . . Level Access Points 1 | . . . . . . . 1 Terminal Index 2 | . 1 . 1 . . . . Locate Traps 1 | . 1 . . . . . . Disarm Traps 1 | . . . . . 1 . . Proto ID Catalog 2 | . . 1 . 1 . . . Release Object 1 | . . 1 . . . . . Fabricator Hacks . | . . . . . . . . Repair Station Hacks . | . . . . . . . . Recycling Unit Hacks . | . . . . . . . . Scanalyzer . | . . . . . . . . Garrison Access Hacks . | . . . . . . . . Unauthorized Hacks 24 | . 7 . 6 . 8 . 3 Terminals 14 | . 6 . 3 . 3 . 2 Botnet 14 | . 6 . 3 . 3 . 2 Fabricators . | . . . . . . . . Repair Stations . | . . . . . . . . Recycling Units 10 | . 1 . 3 . 5 . 1 Recyclers 1 | . . . . . 1 . . Tunnel 4 | . 1 . 3 . . . . Fedlink 4 | . . . . . 4 . . Scrapoids 1 | . . . . . . . 1 Scanalyzers . | . . . . . . . . Garrison Access . | . . . . . . . . Data Cores Recovered . | . . . . . . . . Used . | . . . . . . . . Hacking Detections 22 | . 7 . 5 . 6 . 4 Full Trace Events 2 | . 1 . . . . . 1 Feedback Events 1 | . . . . . . . 1 Corruption 1 | . . . . . . . 1 Feedback Blocked . | . . . . . . . . Robot Schematics Acquired . | . . . . . . . . Robots Built . | . . . . . . . . Authchips . | . . . . . . . . Time . | . . . . . . . . Total Robot Build Rating . | . . . . . . . . Part Schematics Acquired 1 | . . . 1 . . . . Parts Built . | . . . . . . . . Authchips . | . . . . . . . . Time . | . . . . . . . . Total Part Build Rating . | . . . . . . . . Parts Repaired . | . . . . . . . . Time . | . . . . . . . . Parts Recycled . | . . . . . . . . Recycled Matter . | . . . . . . . . Retrieved Matter . | . . . . . . . . Retrieved Components . | . . . . . . . . Parts Scanalyzed . | . . . . . . . . Part Schematics Acquired . | . . . . . . . . Parts Damaged . | . . . . . . . . Bothacking | -11 -10 -10 -8 -8 -6 -6 -6 ------------ Run | Yrd Mat Sub Rec Scr Fac Was Fac Used RIF Installer . | . . . . . . . . Robots Hacked . | . . . . . . . . Non-combat . | . . . . . . . . Combat . | . . . . . . . . Robot Hacks Applied . | . . . . . . . . Relay Couplers Released . | . . . . . . . . Fabnet Peak Effective % . | . . . . . . . . Robots Rewired 6 | . . . 6 . . . . Allies Hacked . | . . . . . . . . Hacks Repelled . | . . . . . . . . Allies | -11 -10 -10 -8 -8 -6 -6 -6 -------- Run | Yrd Mat Sub Rec Scr Fac Was Fac Total Allies 11 | . . . 6 . . . 5 Largest Group 6 | . . . 6 6 6 . 5 Highest-Rated Group 140 | . . . 71 71 71 . 140 Highest-Rated Ally 28 | . . . 21 21 21 . 28 Total Orders 20 | . . . 16 . 4 . . FOLLOW 10 | . . . 8 . 2 . . DROP 1 | . . . . . 1 . . COLLECT 9 | . . . 8 . 1 . . Ally Attacks 79 | . . . 6 . 11 . 62 Total Damage 1181 | . . . 69 . 127 . 985 Kills 8 | . . . 1 . . . 7 Allies Corrupted . | . . . . . . . . Allies Melted . | . . . . . . . . Intel | -11 -10 -10 -8 -8 -6 -6 -6 ------- Run | Yrd Mat Sub Rec Scr Fac Was Fac Active Infowar (turns) 2938 | 7 323 1242 511 217 638 . . Structural 1963 | . 210 1242 511 . . . . Seismic 120 | 7 113 . . . . . . Machine Analysis 855 | . . . . 217 638 . . Robot Analysis Total 9 | . 7 . 1 . 1 . . Derelict Logs Recovered 6 | . . 1 . 5 . . . Drone Launches . | . . . . . . . . Drone Recoveries . | . . . . . . . . Exploration | -11 -10 -10 -8 -8 -6 -6 -6 ------------- Run | Yrd Mat Sub Rec Scr Fac Was Fac Turns Passed 6676 | 139 966 1720 896 1348 1106 68 433 Spaces Moved 4970 | 68 538 1253 501 1089 881 99 541 Core 3 | 1 . . . . . . 2 Treads 646 | . 409 237 . . . . . Legs 107 | . . . . . 107 . . Wheels 3138 | 67 129 1016 501 1089 336 . . Hover 1076 | . . . . . 438 99 539 Flight . | . . . . . . . . Fastest Speed 48 | 50 80 95 100 100 48 60 52 Average Speed 105 | 86 140 117 114 113 85 60 57 Slowest Speed 350 | 100 160 240 115 115 260 60 350 Overloaded Moves . | . . . . . . . . Propulsion Burnouts . | . . . . . . . . Robots Hopped . | . . . . . . . . Potential Cave-ins 2 | . . 2 . . . . . Cave-ins Triggered . | . . . . . . . . Exploration Rate (%) 56 | 4 86 70 98 69 27 75 23 Regions Visited 7 Branch Regions 3 Pre-discovered Areas 9 | . 1 2 3 2 1 . . Known Exits Taken 1 | . . 1 . . . . . Unknown Exits Taken 4 | 1 1 . 1 1 . . . Scrap Searched 6 | . . 1 . 5 . . . Spaces Dug 38 | . . 31 . . 5 . 2 Terrain Destroyed 415 | . 10 130 2 . 198 . 75 Melee 1 | . . 1 . . . . . Projectile 23 | . . . 2 . 17 . 4 AOE 391 | . 10 129 . . 181 . 71 Terrain Rammed . | . . . . . . . . Walls Destroyed . | . . . . . . . . Machines Disabled . | . . . . . . . . Actions | -11 -10 -10 -8 -8 -6 -6 -6 --------- Run | Yrd Mat Sub Rec Scr Fac Was Fac Total 5958 | 103 637 1391 787 1210 1082 107 641 Wait 318 | . 5 12 151 82 22 7 39 Move 4964 | 67 537 1252 500 1088 881 98 541 Hop . | . . . . . . . . Pick Up 69 | 2 11 18 2 15 14 1 6 Fast Attach 36 | 7 1 . 1 1 22 . 4 Attach 48 | . . 5 2 1 27 . 13 Detach 25 | . 1 . 1 . 18 . 5 Swap 59 | 2 8 29 6 7 4 . 3 Drop 54 | . 5 15 2 16 8 1 7 Fire 259 | 25 69 39 19 . 84 . 23 Melee 21 | . . 21 . . . . . Ram . | . . . . . . . . Kick . | . . . . . . . . Crush . | . . . . . . . . Escape Stasis . | . . . . . . . . Rewire 103 | . . . 103 . . . . Trap 2 | . . . . . 2 . . Miscellaneous . | . . . . . . . . Route ------- -11/Scrapyard -10/Materials (discovered 5 exits: [*Mat x2] / [*Min x2] / *Sub) -10/Subcaves (discovered 3 exits: *Mat x2 / *Rec) -8/Recycling (discovered 2 exits: *Fac / *Scr) -8/Scraptown (discovered 2 exits: *Fac x2) -6/Factory -6/Waste -6/Factory (discovered 4 exits: Fac x4) History --------- Turn | Location | Event 14 | -11/Scrapyard | Discovered new exit (range 16) 140 | -11/Scrapyard | Entered Materials 198 | -10/Materials | Discovered new exit (range 11) 316 | -10/Materials | Build established: Mutant 441 | -10/Materials | Discovered new exit (range 15) 533 | -10/Materials | Central database locked down 561 | -10/Materials | Discovered new exit (range 12) 838 | -10/Materials | Discovered new exit (range 15) 1095 | -10/Materials | Discovered new exit (range 8) 1106 | -10/Materials | Entered Subcaves 1107 | -10/Subcaves | Approached by a straggling Scientist 1267 | -10/Subcaves | Shifting Twisted Machinery released Sub. Optics 1354 | -10/Subcaves | Shifting Twisted Machinery released Sub. Power Source 1355 | -10/Subcaves | Shifting Twisted Machinery released Scrap Shield 1397 | -10/Subcaves | Visited Clippyterm 1402 | -10/Subcaves | Identified exit to Materials 1402 | -10/Subcaves | Identified exit to Recycling 1402 | -10/Subcaves | Learned location of Deep Caves (-6) 1477 | -10/Subcaves | Learned location of Zion (-6) 1649 | -10/Subcaves | Ambushed by Subdwellers from Twisted Machinery 1751 | -10/Subcaves | A swath of the cavern ceiling suddenly collapsed 2273 | -10/Subcaves | Ambushed by Subdweller buried in earth 2273 | -10/Subcaves | Ambushed by Subdweller buried in earth 2274 | -10/Subcaves | Core integrity fell below 50% 2276 | -10/Subcaves | Ambushed by Subdweller buried in earth 2391 | -10/Subcaves | Shifting Twisted Machinery released Mak. Light Armor Plating 2395 | -10/Subcaves | Shifting Twisted Machinery released Humpback 2453 | -10/Subcaves | Visited 4L-MR0's lab 2471 | -10/Subcaves | Found Gun Armor 2826 | -10/Subcaves | Entered Recycling 2827 | -8/Recycling | Met a Zionite searching for Scraptown 3317 | -8/Recycling | Build established: Commander-Mutant 3577 | -8/Recycling | Discovered new exit (range 15) 3664 | -8/Recycling | Scanned before Scraplab entrance 3694 | -8/Recycling | Entered Scraplab 3703 | -8/Recycling | Discovered new exit (range 4) 3722 | -8/Recycling | Entered Scraptown 3722 | -8/Scraptown | Accompanied by 6 allies 3872 | -8/Scraptown | Scanned Subdweller tech in exchange for log data 3875 | -8/Scraptown | Learned Research terminal intel 3876 | -8/Scraptown | Learned Factory terminal intel 3878 | -8/Scraptown | Learned Research trap positions 3953 | -8/Scraptown | Visited UFD Registry 3953 | -8/Scraptown | Registered with UFD as "Carbondisc" 3969 | -8/Scraptown | Visited Cave Peace 4009 | -8/Scraptown | Visited Shadow of the Wyrm 4022 | -8/Scraptown | Heard Great Nut preacher, LISTEN AND RECITE! 4197 | -8/Scraptown | Discovered new exit (range 13) 4258 | -8/Scraptown | Visited Awakened 4301 | -8/Scraptown | Visited IN-MT5's Study 4354 | -8/Scraptown | Visited Chapter 10 4373 | -8/Scraptown | Visited Observation Area 4394 | -8/Scraptown | Visited Abandonware Association 4407 | -8/Scraptown | Learned abandonware demo "REVENGE.EXE" 4407 | -8/Scraptown | Learned abandonware demo "MELTYB.EXE" 4435 | -8/Scraptown | Visited Junk Repository 4469 | -8/Scraptown | Visited Derelict Rescue Squad 4476 | -8/Scraptown | Found DRS Beacon 4497 | -8/Scraptown | Visited DA-N13 Charitable Foundation 4502 | -8/Scraptown | Found DCF Scrap (29 items) 4550 | -8/Scraptown | Visited Junk Repository 4617 | -8/Scraptown | Delivered Scrap Shield to a Scientist 4685 | -8/Scraptown | Visited LU-1G1's Boring Crew 4703 | -8/Scraptown | Visited Supply Room 4720 | -8/Scraptown | Visited Science Guys 4851 | -8/Scraptown | Received an X-ray algorithm 4855 | -8/Scraptown | Found Scrap Suit 4970 | -8/Scraptown | Met Optimus 4970 | -8/Scraptown | Accepted into 0bPrime 5042 | -8/Scraptown | Discovered new exit (range 3) 5070 | -8/Scraptown | Entered Factory 5070 | -6/Factory | Accompanied by 6 allies 5070 | -6/Factory | Evolved 8 slots: Propulsion x3, Utility x4, Weapon x1 5071 | -6/Factory | Loaded intel: 26 terminal locations 5088 | -6/Factory | Loaded intel: 8 recycling unit locations 5206 | -6/Factory | Lost 3 allies 5268 | -6/Factory | Lost 5 parts (1p3n1w) 5289 | -6/Factory | Learned location of Protoforge (-2) 5384 | -6/Factory | Lost 4 parts (1n1u2w) 5577 | -6/Factory | Garrison activated, responded to threat 5587 | -6/Factory | Lost 3 allies 5627 | -6/Factory | Lost 4 parts (1p2n1w) 5813 | -6/Factory | Core integrity fell below 50% 5849 | -6/Factory | Lost 6 parts (1p3n1u1w) 5939 | -6/Factory | Lost 7 parts (3n2u2w) 6101 | -6/Factory | Core integrity fell below 20% 6120 | -6/Factory | First assault squad dispatched 6176 | -6/Factory | Manually triggered Chute Trap 6176 | -6/Factory | Sucked down chute 6176 | -6/Factory | Entered Waste 6191 | -6/Waste | EMP discharged 6191 | -6/Waste | System corruption reached 10% 6197 | -6/Waste | Spotted C-40 Crusher 6197 | -6/Waste | Spotted C-40 Crusher 6199 | -6/Waste | Spotted C-40 Crusher 6218 | -6/Waste | Spotted C-40 Crusher 6220 | -6/Waste | Spotted C-40 Crusher 6221 | -6/Waste | Spotted C-40 Crusher 6235 | -6/Waste | Discovered new exit (range 16) 6237 | -6/Waste | Build established: Mutant 6244 | -6/Waste | Entered Factory 6432 | -6/Factory | Scrapoid reinforcements arrived 6602 | -6/Factory | Destroyed 7 combat bots 6624 | -6/Factory | Identified exit to Factory 6677 | -6/Factory | Destroyed by S-27 Virus with Autogun Last Messages --------------- Magnetic Acceleration Cannon. 06633_ System corrupted: Magnetic Acceleration Cannon misfires. 06633_ The unstable cave ceiling collapses. 06633_ U-05 Engineer destroyed. 06634_ K-01 Serf collects debris. 06634_ U-05 Engineer builds a Door. 06636_ Connecting with Garrison Access... 06637_ K-01 Serf collects debris. 06637_ Acquired Lrn. Missile Launcher. 06638_ U-05 Engineer builds a Wall. 06641_ K-01 Serf collects debris. 06643_ U-05 Engineer lays Concrete. 06644_ K-01 Serf collects debris. 06644_ Acquired 23 matter. 06645_ Acquired 5 matter. 06645_ U-05 Engineer lays Concrete. 06648_ The unstable cave ceiling collapses. 06648_ K-01 Serf collects debris. 06676_ S-27 Virus destroyed. Map ----- +----------------------------------------------------+ | ?????????????????????????????????????????????????? | | ?????????????????????????????????????????????????? | | ?????????????????????????????????????????????????? | | ?????????????????????????????????????????????????? | | ?????????????????????????????????????????????????? | | ?????????????????????